[Event "5th Sharjah Masters 2022"]
[Site "Sharjah"]
[Date "2022.05.24"]
[Round "4.20"]
[White "Moussard, Jules"]
[Black "Vokhidov, Shamsiddin"]
[Result "1-0"]
[ECO "B67"]
[WhiteElo "2651"]
[BlackElo "2536"]
[Annotator "TA"]
[PlyCount "113"]
[EventDate "2022.05.21"]
[EventType "swiss"]
[EventCountry "UAE"]
[SourceTitle "playchess.com"]
[Source "ChessBase"]
[SourceQuality "1"]
[TimeControl "5400+30"]

{[%evp 18,113,33,12,28,39,39,12,9,21,29,22,26,22,15,36,7,16,15,20,50,0,0,0,0,0,10,23,5,8,0,0,0,0,0,0,0,0,50,0,0,0,0,0,31,31,41,47,48,39,71,39,66,68,67,42,46,54,52,54,56,43,66,66,86,82,83,75,72,0,0,0,0,0,0,0,0,0,5,12,41,14,372,326,381,358,351,306,490,474,12829,12832,12836,12837,12837,12837,12833,12834]} 1. e4 {[%emt 0:00:05]} c5 {[%emt 0:00:05]} 2. Nf3 {[%emt 0:00:05]} d6 {[%emt 0:00:04]} 3. d4 {[%emt 0:00:39]} cxd4 {[%emt 0:00:04]} 4. Nxd4 {[%emt 0:00:06]} Nf6 {[%emt 0:00:04]} 5. Nc3 {[%emt 0:00:11]} Nc6 {[%emt 0:00:03]} 6. Bg5 {[%emt 0:01:39]} e6 {[%emt 0:00:15]} 7. Qd2 {[%emt 0:01:09]} a6 {[%emt 0:00:26]} 8. O-O-O {[%emt 0:00:27]} Bd7 {[%emt 0:00:04] The main line 8...Bd7 scores better than 8...h6.} 9. f3 {[%emt 0:00:59]} Nxd4 {[%emt 0:00:30]} 10. Qxd4 {[%emt 0:00:06]} Be7 {[%emt 0:00:07] B67: Sicilian: Richter-Rauzer: 7...a6 8 0-0-0 Bd7, lines without 9 f4 Be7.} (10... h6 $5 {[%cal Rh6g5]} 11. Be3 Bc6 $14) 11. Kb1 {[%emt 0:00:56]} Qc7 {[%emt 0:00:34]} 12. Qd2 {[%emt 0:01:13]} b5 {[%emt 0:04:29] The position is equal.} 13. g4 {[%emt 0:00:55]} h6 {[%emt 0:03:19]} 14. Be3 {[%emt 0:03:07]} Bc6 {[%emt 0:01:03]} 15. Rg1 {[%emt 0:04:42]} Nd7 {[%emt 0:09:06][%cal Bf6d7,Bd7e5,Be5c4][%mdl 32]} 16. g5 {[%emt 0:08:11] [#]} hxg5 $146 {[%emt 0:00:44]} ({Predecessor:} 16... Ne5 17. Qf2 h5 18. h3 Rc8 19. f4 b4 20. fxe5 bxc3 21. exd6 Bxd6 22. Bb6 Qb8 23. b3 O-O 24. Bxa6 {½-½ (38) Munguntuul,B (2451)-Ding,Y (2350) Beijing 2012}) 17. Bxg5 {[%emt 0:00:56]} g6 {[%emt 0:07:37]} 18. h4 {[%emt 0:10:20]} Ne5 {[%emt 0:04:32]} 19. Qg2 {[%emt 0:14:23]} b4 {[%emt 0:16:45]} 20. Ne2 {[%emt 0:01:24]} Bxg5 {[%emt 0:50:39]} 21. hxg5 {[%emt 0:01:51]} d5 {[%emt 0:00:00]} 22. f4 {[%emt 0:06:45]} Nc4 {[%emt 0:00:00] [#] Strongly threatening ...Ne3.} 23. Qf2 {[%emt 0:00:19] Inhibits Ne3. White wants to play Nd4.} Bb7 {[%emt 0:00:00]} (23... O-O-O $5 {[%cal Rd5e4]} 24. Nd4 Bb7 $11) 24. exd5 {[%emt 0:20:06]} Bxd5 {[%emt 0:00:00]} 25. Nd4 {[%emt 0:00:54]} O-O-O {[%emt 0:00:00]} 26. Bxc4 {[%emt 0:02:53]} Qxc4 {[%emt 0:00:00]} 27. Nb3 {[%emt 0:02:50][%cal Bd4b3,Bb3c1,Bc1d3,Bd3e5,Be5c4,Bc4e3][%mdl 32]} Qc7 {[%emt 0:00:00]} (27... Rd7 $11) 28. Rd4 {[%emt 0:02:17]} ({White should play} 28. Rc1 $14) 28... a5 $11 {[%emt 0:00:00]} 29. Rgd1 {[%emt 0:01:46]} Rd6 {[%emt 0:00:00]} 30. Nc1 {[%emt 0:02:04]} Rhd8 {[%emt 0:00:00]} 31. b3 {[%emt 0:00:15]} Rc6 {[%emt 0:00:00]} 32. Nd3 {[%emt 0:02:31]} Kb7 {[%emt 0:00:00]} 33. Ne5 {[%emt 0:00:26]} Rc5 {[%emt 0:00:00]} 34. Nc4 {[%emt 0:01:37]} Rc8 {[%emt 0:00:00]} 35. Ne3 {[%emt 0:00:14] White is more active.} Qc6 {[%emt 0:00:00]} 36. Qd2 {[%emt 0:01:31]} Rc3 {[%emt 0:00:00]} 37. Rc1 {[%emt 0:00:38][%cal Re3d5]} Rc5 {[%emt 0:00:00]} 38. Re1 {[%emt 0:00:36]} Kb8 {[%emt 0:00:00]} 39. Nxd5 {[%emt 0:03:03]} exd5 {[%emt 0:00:00]} 40. Re2 {[%emt 0:00:14]} Qd7 {[%emt 0:02:11]} 41. Qd1 {[%emt 0:01:06]} Qg4 {[%emt 0:01:00]} 42. Kb2 {[%emt 0:00:29]} Qf3 {[%emt 0:01:02]} 43. Qd3 {[%emt 0:00:41]} (43. a4 $16) 43... Qxd3 $1 {[%emt 0:00:54]} 44. Rxd3 {[%emt 0:00:02][%mdl 4096] Endgame KRR-KRR} Kc7 {[%emt 0:00:48]} 45. a3 {[%emt 0:01:29]} bxa3+ {[%emt 0:03:10]} 46. Kxa3 {[%emt 0:00:01] Black must now prevent Re7+.} Kb6 {[%emt 0:00:34]} 47. Kb2 {[%emt 0:01:15]} a4 {[%emt 0:00:24]} 48. bxa4 {[%emt 0:00:31]} Ka5 {[%emt 0:01:27]} 49. Re5 {[%emt 0:02:08]} Rxc2+ $2 {[%emt 0:01:28][%mdl 8192] Loses the game.} (49... Kxa4 $11 50. Rd4+ (50. Rexd5 $2 {leads to mate.} Rxc2+ 51. Ka1 Rc1+ 52. Kb2 R8c2#) 50... Rc4 51. Rexd5 R8c6) 50. Kb3 $18 {[%emt 0:00:02]} Ka6 {[%emt 0:00:15]} 51. Rexd5 {[%emt 0:00:14] [#] And now Rd7 would win.} Rc1 {[%emt 0:00:40]} 52. Rd6+ {[%emt 0:00:05]} Ka7 $2 {[%emt 0:00:01]} (52... Kb7 53. Rd7+ Kc6 54. R7d6+ (54. Rxf7 Rb8+ 55. Ka2 Rcb1 $16) 54... Kb7 55. Rd7+ Kc6) 53. Rd7+ {[%emt 0:00:27] White is clearly winning.} Ka8 {[%emt 0:00:01]} (53... Kb6 $142 54. Rxf7 Rb1+ 55. Ka3 Rbc1 56. Rd6+ Kc5) 54. Rd8 {[%emt 0:00:46]} Kb8 {[%emt 0:00:39]} 55. Rxc8+ {[%emt 0:00:08]} Rxc8 {[%emt 0:00:02]} 56. Rd7 {[%emt 0:00:09]} Rf8 {[%emt 0:00:03]} 57. Kc4 {[%emt 0:03:37] Weighted Error Value: White=0.07 (flawless) /Black=0.21 (precise)} 1-0

[Event "5th Sharjah Masters 2022"]
[Site "Sharjah"]
[Date "2022.05.24"]
[Round "4.21"]
[White "Adhiban, B.."]
[Black "Sankalp Gupta"]
[Result "1-0"]
[ECO "E42"]
[WhiteElo "2616"]
[BlackElo "2505"]
[Annotator "TA"]
[PlyCount "51"]
[EventDate "2022.05.21"]
[EventType "swiss"]
[EventCountry "UAE"]
[SourceTitle "playchess.com"]
[Source "ChessBase"]
[SourceQuality "1"]
[TimeControl "5400+30"]

{[%evp 14,51,33,42,39,35,64,53,140,138,263,267,260,260,259,265,258,195,189,193,134,142,139,135,128,154,218,185,269,231,370,370,370,363,735,605,491,437,469,393]} 1. d4 {[%emt 0:00:03]} Nf6 {[%emt 0:00:23]} 2. c4 {[%emt 0:00:05]} e6 {[%emt 0:00:11]} 3. Nc3 {[%emt 0:00:06]} Bb4 {[%emt 0:00:09]} 4. e3 {[%emt 0:00:15]} b6 {[%emt 0:05:31]} 5. Nge2 {[%emt 0:00:44]} c5 {[%emt 0:04:14]} 6. a3 {[%emt 0:00:55]} Ba5 {[%emt 0:00:19]} 7. Rb1 {[%emt 0:04:27]} Na6 {[%emt 0:01:20]} 8. Ng3 {[%emt 0:10:23]} O-O {[%emt 0:10:07] E42: Nimzo-Indian: Rubinstein: 4...c5 5 Ne2.} 9. Bd3 {[%emt 0:05:03][%cal Bf1d3,Bd3e2,Be2c4,Bc4b3][%mdl 32]} d5 {[%emt 0:04:33]} 10. O-O {[%emt 0:00:15]} cxd4 {[%emt 0:07:00] [#]} ({Black should try} 10... Bxc3 $14 11. bxc3 Bb7) 11. Nb5 $146 {[%emt 0:09:26]} (11. exd4 $6 Bxc3 12. bxc3 dxc4 13. Bxc4 Bb7 $14) ({Predecessor:} 11. exd4 Bxc3 12. bxc3 dxc4 13. Bxc4 Qc7 14. Qe2 Nb8 15. Bb2 Nbd7 16. Bd3 Bb7 17. c4 {1-0 (46) Del Rio de Angelis,S (2495)-Ponomariov,R (2695) Albox 2005}) 11... e5 {[%emt 0:15:28]} (11... Nc5 $16) 12. exd4 $18 {[%emt 0:03:59]} e4 {[%emt 0:03:29]} 13. Be2 {[%emt 0:00:11]} dxc4 {[%emt 0:00:19]} 14. Bxc4 {[%emt 0:00:08] Black must now prevent Bg5.} Nb8 {[%emt 0:01:17]} 15. b4 {[%emt 0:07:53]} a6 {[%emt 0:00:02]} 16. Nc3 {[%emt 0:00:07]} (16. bxa5 $6 axb5 17. Bxb5 (17. Rxb5 Ba6 $11) 17... Rxa5 $16) 16... b5 {[%emt 0:00:05]} 17. Bb3 $36 {[%emt 0:06:57][%mdl 2048] White has strong initiative. White is more active.} (17. Ncxe4 Nxe4 18. Nxe4 bxc4 $16) 17... Bb6 {[%emt 0:02:28]} 18. Ncxe4 {[%emt 0:05:54]} Nxe4 {[%emt 0:03:31]} 19. Nxe4 {[%emt 0:02:37][%cal Bg3e4,Be4d6,Bd6f7][%mdl 32] [#] And now Qh5 would win.} Bxd4 {[%emt 0:00:25]} (19... Bf5 $16) 20. Be3 {[%emt 0:09:52]} Bf5 {[%emt 0:15:30]} (20... Nc6 {might work better.} 21. Qh5 Bxe3) 21. Qf3 {[%emt 0:01:51]} ({Much less strong is} 21. Qxd4 $6 Qxd4 22. Bxd4 Bxe4 $16) (21. Bxd4 Bxe4 22. Rc1 Nc6 $16) 21... Bxe3 {[%emt 0:02:21]} (21... Bg6 $142 22. Bd5 Bxe3) 22. Qxf5 {[%emt 0:02:13]} ({Not} 22. fxe3 Bg6 $14) 22... Bh6 {[%emt 0:01:22]} 23. Rbd1 {[%emt 0:00:42]} Qe7 {[%emt 0:06:45]} (23... Qc8 24. Bxf7+ Kh8 25. Qxc8 Rxc8) 24. Nd6 {[%emt 0:06:23] Hoping for Nxf7. White is clearly winning.} g6 {[%emt 0:03:06]} 25. Qf3 {[%emt 0:00:46]} Ra7 {[%emt 0:03:18]} 26. Nxf7 {[%emt 0:00:54] Weighted Error Value: White=0.18 (very precise) /Black=0.38} 1-0

[Event "5th Sharjah Masters 2022"]
[Site "Sharjah"]
[Date "2022.05.24"]
[Round "4.22"]
[White "Hakobyan, Aram"]
[Black "Msellek, Ilyass"]
[Result "1-0"]
[ECO "B45"]
[WhiteElo "2615"]
[BlackElo "2411"]
[Annotator "TA"]
[PlyCount "71"]
[EventDate "2022.05.21"]
[EventType "swiss"]
[EventCountry "UAE"]
[SourceTitle "playchess.com"]
[Source "ChessBase"]
[SourceQuality "1"]
[TimeControl "5400+30"]

{[%evp 11,71,12,26,31,35,21,24,29,36,35,35,12,22,31,36,9,47,49,27,41,98,108,97,96,102,104,104,104,108,100,131,122,250,261,231,250,229,202,345,348,353,350,433,437,419,433,417,349,359,346,382,357,412,427,740,727,860,817,1227,1197,1653,1487]} 1. e4 {[%emt 0:00:02]} c5 {[%emt 0:00:08]} 2. Nf3 {[%emt 0:00:02]} e6 {[%emt 0:00:12]} 3. d4 {[%emt 0:00:05]} cxd4 {[%emt 0:00:05]} 4. Nxd4 {[%emt 0:00:02]} Nf6 {[%emt 0:00:10]} 5. Nc3 {[%emt 0:00:04]} Nc6 {[%emt 0:00:08]} 6. Be2 {[%emt 0:00:08]} d5 {[%emt 0:01:04]} 7. exd5 {[%emt 0:00:07] B45: Sicilian Four Knights.} exd5 {[%emt 0:00:06]} 8. a3 {[%emt 0:01:31]} Bc5 {[%emt 0:01:18]} 9. Be3 {[%emt 0:00:20] [#] Threatens to win with Nxc6. White has an edge.} Bb6 $146 {[%emt 0:02:44]} ({Predecessor:} 9... O-O 10. Nxc6 bxc6 11. Bxc5 Re8 12. O-O Rb8 13. Rb1 Ne4 14. Nxe4 Rxe4 15. Bd3 Re8 {1-0 (27) Uzunov,E (1114)-Rejniak,M (814) Mureck 2019}) 10. Qd2 {[%emt 0:00:12]} O-O {[%emt 0:02:35]} 11. f3 {[%emt 0:00:32]} Be6 {[%emt 0:31:22]} 12. O-O-O {[%emt 0:04:26]} Rc8 {[%emt 0:00:21]} 13. g4 {[%emt 0:06:29]} Ba5 {[%emt 0:07:13]} 14. Nb3 {[%emt 0:04:58]} d4 {[%emt 0:19:11]} 15. Nxa5 {[%emt 0:00:23]} ({Much worse is} 15. Nxd4 Qe7 16. Nxe6 Qxe6 $11) 15... dxe3 {[%emt 0:03:37]} ({Better is} 15... dxc3 $14 16. Qxd8 Nxd8) 16. Qxd8 $16 {[%emt 0:00:08]} Nxd8 {[%emt 0:00:29]} 17. Rhe1 {[%emt 0:06:05]} b6 {[%emt 0:08:17] [#]} 18. Nb3 {[%emt 0:01:20]} Bxb3 {[%emt 0:15:31]} 19. cxb3 {[%emt 0:00:02]} Ne6 {[%emt 0:01:56]} 20. Bc4 {[%emt 0:00:46]} Nc7 {[%emt 0:01:13]} 21. Kb1 {[%emt 0:04:39] White is more active.} Rfe8 {[%emt 0:00:17] [#] A mistake that costs the game.} (21... Rfd8 $16 {was called for.}) 22. g5 $1 $18 {[%emt 0:00:49]} Nh5 {[%emt 0:01:37]} 23. Rd7 {[%emt 0:00:07][%cal Bd1d7,Bd7a7,Ba7e7][%mdl 32]} Ne6 {[%emt 0:00:16]} 24. Rxe3 {[%emt 0:03:52]} Nxg5 {[%emt 0:00:06]} (24... Ra8 {was necessary.} 25. Ne2 g6 26. Bxe6 fxe6) 25. Rxe8+ {[%emt 0:00:09]} Rxe8 {[%emt 0:00:03]} 26. Rxa7 {[%emt 0:01:55][%cal Oc3e4] aiming for Ne4!} Nf4 {[%emt 0:00:49]} 27. Ne4 {[%emt 0:00:43]} Nge6 {[%emt 0:00:50]} 28. Nd6 {[%emt 0:00:05]} Rf8 {[%emt 0:00:37]} 29. Re7 {[%emt 0:01:37]} Ng5 {[%emt 0:02:13]} 30. Ka2 {[%emt 0:01:12]} h5 {[%emt 0:00:09]} 31. b4 {[%emt 0:10:01]} h4 {[%emt 0:00:10]} 32. a4 {[%emt 0:01:07][%cal Ba3a4,Ba4a5,Ba5a6][%mdl 32]} h3 {[%emt 0:00:26]} (32... Nxf3 $142 33. a5 (33. Bxf7+ Kh7 $18) (33. Nxf7 Nd2 $16) 33... bxa5) 33. a5 {[%emt 0:01:08]} b5 {[%emt 0:00:27]} 34. Nxb5 {[%emt 0:01:49]} Nxf3 {[%emt 0:01:08]} 35. a6 {[%emt 0:00:14]} Ra8 {[%emt 0:00:40]} 36. Nc7 {[%emt 0:01:28] Weighted Error Value: White=0.06 (flawless) /Black=0.31} 1-0

[Event "5th Sharjah Masters 2022"]
[Site "Sharjah"]
[Date "2022.05.24"]
[Round "4.23"]
[White "Kamalidenova, Meruert"]
[Black "Puranik, Abhimanyu"]
[Result "0-1"]
[ECO "C70"]
[WhiteElo "2408"]
[BlackElo "2608"]
[Annotator "TA"]
[PlyCount "86"]
[EventDate "2022.05.21"]
[EventType "swiss"]
[EventCountry "UAE"]
[SourceTitle "playchess.com"]
[Source "ChessBase"]
[SourceQuality "1"]
[TimeControl "5400+30"]

{[%evp 9,86,64,57,62,50,39,56,39,41,47,60,56,52,68,51,-68,-56,-81,-98,-144,-152,-130,-148,-103,-104,-225,-221,-229,-232,-231,-235,-228,-231,-231,-223,-226,-226,-222,-224,-309,-309,-438,-439,-558,-550,-552,-557,-527,-553,-530,-555,-553,-552,-544,-533,-585,-585,-583,-566,-556,-556,-548,-523,-516,-515,-493,-493,-6075,-5720,-7329,-7329,-6361,-6361,-5531,-5531,-5522,-5518,-29971,-29972]} 1. e4 {[%emt 0:00:07]} e5 {[%emt 0:00:10]} 2. Nf3 {[%emt 0:00:07]} Nc6 {[%emt 0:00:02]} 3. Bb5 {[%emt 0:00:08][%cal Bf1b5,Bb5a4,Ba4b3][%mdl 32]} a6 {[%emt 0:00:04]} 4. Ba4 {[%emt 0:00:07]} f5 {[%emt 0:00:08]} 5. d4 {[%emt 0:00:47]} exd4 {[%emt 0:00:20]} 6. e5 {[%emt 0:03:56] C70: Ruy Lopez: 3...a6 4 Ba4, Norwegian and Delayed Schliemann.} b5 $1 {[%emt 0:00:39][%mdl 4] is recently more successful than 6...Bc5.} 7. Bb3 {[%emt 0:00:21]} Bb7 $1 {[%emt 0:00:14]} 8. O-O {[%emt 0:02:40] White is slightly better.} Na5 $1 {[%emt 0:00:58]} 9. Nxd4 {[%emt 0:11:20]} c5 {[%emt 0:00:19]} 10. Nxf5 {[%emt 0:11:00]} c4 {[%emt 0:00:18] [#]} 11. Qg4 $1 {[%emt 0:01:25]} Qb6 $1 {[%emt 0:06:48] [#]} 12. Re1 $146 {[%emt 0:15:09]} ({Predecessor:} 12. Nd6+ Bxd6 13. exd6 O-O-O 14. Qxg7 Qxd6 15. Bg5 Rf8 16. Qxh8 Qd5 17. f3 Qxg5 18. Kh1 {½-½ (59) Beikert,G (2414)-Buecker,S (2280) Sasbach 2018}) 12... O-O-O $1 $15 {[%emt 0:09:26] White must now prevent ...Nh6.} 13. Bg5 {[%emt 0:06:32]} Re8 {[%emt 0:03:07]} 14. Nd2 {[%emt 0:02:14] [#]} (14. Nc3 $142) 14... Nh6 $1 $17 {[%emt 0:03:01]} 15. Nxh6 {[%emt 0:12:33]} gxh6 {[%emt 0:00:13]} 16. Bf6 {[%emt 0:00:16] Strongly threatening e6.} Bc5 {[%emt 0:04:35] The board is on fire.} 17. Bxh8 {[%emt 0:02:32] Loses the game.} (17. e6 $17 Bxf2+ 18. Kf1 Bxe1 19. exd7+ Kb8 20. dxe8=Q+ Rxe8 21. Bd4) 17... Bxf2+ $19 {[%emt 0:00:15]} 18. Kh1 {[%emt 0:00:24][%cal Oe5e6]} Bxe1 {[%emt 0:02:26]} 19. Rxe1 {[%emt 0:01:17][%cal Oe5e6]} Rxh8 {[%emt 0:00:42]} ({Not} 19... cxb3 {[#]} 20. e6 $1 Rxe6 21. Rxe6 Qxe6 22. Qxe6 dxe6 23. axb3 $11) 20. e6 {[%emt 0:03:54]} Qd6 {[%emt 0:11:21]} 21. Nxc4 {[%emt 0:12:08]} Nxc4 {[%emt 0:05:52]} ({Stronger than} 21... bxc4 22. Ba4 Nc6 23. h3 $17) 22. Bxc4 {[%emt 0:00:11]} bxc4 $40 {[%emt 0:00:06][%mdl 128] Black goes for the king.} 23. Qxc4+ {[%emt 0:00:20]} Kb8 {[%emt 0:00:14] aiming for ...Rg8.} 24. exd7 {[%emt 0:05:45]} Qxd7 {[%emt 0:00:29]} 25. Qf4+ {[%emt 0:00:29]} (25. c3 {was necessary.}) 25... Ka8 {[%emt 0:00:21] And now ...Rg8 would win.} 26. Kg1 {[%emt 0:01:50]} Rg8 {[%emt 0:00:39]} 27. Re2 {[%emt 0:00:22]} Qd1+ {[%emt 0:00:36]} 28. Qf1 {[%emt 0:00:08]} Qd4+ {[%emt 0:00:06]} 29. Kh1 {[%emt 0:00:28]} Qxb2 {[%emt 0:00:12]} 30. Rf2 {[%emt 0:00:33]} Qb4 {[%emt 0:00:53] Inhibits Rf8+.} 31. h3 {[%emt 0:00:13]} h5 {[%emt 0:04:11][%cal Bh6h5,Bh5h4][%mdl 32]} 32. c4 {[%emt 0:02:51]} h4 {[%emt 0:01:01]} 33. Re2 {[%emt 0:00:36]} Qc3 {[%emt 0:03:05] Threatens to win with ...Qxh3+.} 34. Kg1 {[%emt 0:00:30]} Qd4+ {[%emt 0:00:21]} 35. Kh2 {[%emt 0:00:36]} Rd8 {[%emt 0:03:07]} 36. Rf2 {[%emt 0:00:55]} Qe5+ {[%emt 0:01:27]} 37. Kh1 {[%emt 0:00:23]} Qc5 {[%emt 0:00:23]} 38. Rf5 {[%emt 0:01:23]} (38. Kh2 $142) 38... Qe3 {[%emt 0:00:48][%cal Od8d1]} 39. Rf8 {[%emt 0:01:15]} Rxf8 {[%emt 0:01:55]} 40. Qxf8+ {[%emt 0:00:05]} Ka7 {[%emt 0:00:02] ( -> ...Qxh3+)} 41. Qg7 {[%emt 0:01:18]} Qxh3+ {[%emt 0:00:09]} 42. Kg1 {[%emt 0:00:04]} Qe3+ {[%emt 0:00:09]} 43. Kh2 {[%emt 0:00:20]} Qg3+ {[%emt 0:00:10] Weighted Error Value: White=0.29 (precise) /Black=0.01 (flawless)} 0-1